fUSD/lending_fUSD_20241016
["ID","MTS","AMOUNT","RATE_DAILY","PERIOD"]
[340363048,1729090250002,-151.0,0.00023986,7]
[340363049,1729090250012,-151.0,0.00023986,7]
[340363050,1729090250022,-151.0,0.00023986,7]
[340363051,1729090250032,-151.0,0.00023986,7]
[340363052,1729090250042,-151.0,0.00023986,7]
[340363053,1729090250051,-151.0,0.00023986,7]
[340363054,1729090250061,-205.247859,0.00023986,7]
[340363055,1729090250070,-151.0,0.00023986,7]
[340363056,1729090250079,-205.247859,0.00023986,7]
[340363057,1729090250089,-6911.125232,0.00023986,7]
[340363058,1729090250098,-151.0,0.00023986,7]
[340363059,1729090250108,-151.0,0.00023986,7]
[340363060,1729090250117,-367.046569,0.00023986,7]
[340363061,1729090250127,-206.961402,0.00023986,7]
[340363062,1729090250136,-367.046569,0.00023986,7]
[340363063,1729090250146,-151.0,0.00023986,7]
[340363064,1729090250156,-151.0,0.00023986,7]
[340363065,1729090250166,-231.675069,0.00023986,7]
[340363066,1729090250175,-231.675069,0.00023986,7]
[340363067,1729090250184,-151.0,0.00023986,7]
[340363068,1729090250194,-535.400408,0.00023986,7]
[340363069,1729090250204,-535.400408,0.00023986,7]
[340363070,1729090250213,-151.0,0.00023986,7]
[340363071,1729090250223,-151.0,0.00023986,7]
[340363072,1729090250232,-2685.327383,0.00023986,7]
[340363073,1729090250241,-2685.327383,0.00023986,7]
[340363074,1729090250251,-280.581335,0.00023986,7]
[340363075,1729090250260,-280.581335,0.00023986,7]
[340363076,1729090250270,-384.094243,0.00023986,7]
[340363077,1729090250281,-384.094243,0.00023986,7]
[340363078,1729090250291,-189.786173,0.00023986,7]
[340363079,1729090250300,-189.786173,0.00023986,7]
[340363080,1729090250310,-1800.6591,0.00023986,7]
[340363081,1729090250319,-1800.6591,0.00023986,7]
[340363082,1729090250329,-3931.467695,0.00023986,7]
[340363083,1729090250339,-311.333139,0.00023986,7]
[340363084,1729090250349,-151.0,0.00023986,7]
[340363085,1729090250358,-3931.467695,0.00023986,7]
[340363086,1729090250367,-275.086039,0.00023986,7]
[340363087,1729090250377,-311.333139,0.00023986,7]
[340363088,1729090250386,-275.086039,0.00023986,7]
[340363089,1729090250396,-232.57071,0.00023986,7]
[340363090,1729090250406,-232.57071,0.00023986,7]
[340363091,1729090250415,-279.84086,0.00023986,7]
[340363092,1729090250425,-279.84086,0.00023986,7]
[340363093,1729090250435,-178.43074,0.00023986,7]
[340363094,1729090250445,-178.43074,0.00023986,7]
[340363095,1729090250455,-296.211603,0.00023986,7]
[340363096,1729090250464,-296.211603,0.00023986,7]
[340363097,1729090250473,-785.418579,0.00023986,7]
[340363098,1729090250483,-785.418579,0.00023986,7]
[340363099,1729090250492,-3585.03,0.00023986,2]
[340363100,1729090250501,-534.876548,0.00023986,7]
[340363101,1729090250511,-534.876548,0.00023986,7]
[340363102,1729090250521,-231.089721,0.00023986,7]
[340363103,1729090250532,-218.37,0.00023986,7]
[340363104,1729090250541,-231.089721,0.00023986,7]
[340363105,1729090250550,-218.37,0.00023986,7]
[340363106,1729090250560,-90744.91,0.00023986,3]
[340363107,1729090250569,-151.0,0.00023987,7]
[340363108,1729090250579,-151.0,0.00023987,7]
[340363109,1729090250588,-233.713239,0.00023987,7]
[340363110,1729090250598,-233.713239,0.00023987,7]
[340363111,1729090250607,-151.0,0.00023987,7]
[340363112,1729090250617,-308.956919,0.00023987,7]
[340363113,1729090250626,-308.956919,0.00023987,7]
[340363114,1729090250635,-2952.163839,0.00023987,7]
[340363115,1729090250644,-2952.163839,0.00023987,7]
[340363116,1729090250654,-151.0,0.00023987,7]
[340363117,1729090250665,-151.0,0.00023987,7]
[340363118,1729090250674,-215.027912,0.00023987,7]
[340363119,1729090250683,-151.0,0.00023987,7]
[340363120,1729090250692,-151.0,0.00023987,7]
[340363121,1729090250701,-151.0,0.00023987,7]
[340363122,1729090250711,-151.0,0.00023987,7]
[340363123,1729090250720,-260.815285,0.00023987,7]
[340363124,1729090250730,-260.815285,0.00023987,7]
[340363125,1729090250739,-268.941669,0.00023987,7]
[340363126,1729090250749,-268.941669,0.00023987,7]
[340363127,1729090250758,-158.542165,0.00023987,7]
[340363128,1729090250767,-265.476483,0.00023987,7]
[340363129,1729090250778,-265.476483,0.00023987,7]
[340363130,1729090250791,-151.0,0.00023987,7]
[340363131,1729090250800,-217.359221,0.00023987,7]
[340363132,1729090250809,-217.359221,0.00023987,7]
[340363133,1729090250819,-151.0,0.00023987,7]
[340363134,1729090250830,-205.084029,0.00023987,7]
[340363135,1729090250840,-151.0,0.00023987,7]
[340363136,1729090250849,-205.084029,0.00023987,7]
[340363137,1729090250860,-151.0,0.00023987,7]
[340363138,1729090250870,-530.67712,0.00023987,7]
[340363139,1729090250881,-151.0,0.00023987,7]
[340363140,1729090250891,-530.67712,0.00023987,7]
[340363141,1729090250901,-151.0,0.00023987,7]
[340363142,1729090250911,-151.0,0.00023987,7]
[340363143,1729090250921,-781.795626,0.00023987,7]
[340363144,1729090250931,-781.795626,0.00023987,7]
[340363145,1729090250941,-582.948746,0.00023987,7]
[340363146,1729090250951,-582.948746,0.00023987,7]
[340363147,1729090250961,-237.958686,0.00023987,7]
[340363148,1729090250970,-237.958686,0.00023987,7]
[340363149,1729090250979,-821.174344,0.00023987,7]
[340363150,1729090251047,-821.174344,0.00023987,7]
[340363151,1729090251056,-1553.791712,0.00023987,7]
[340363152,1729090251066,-151.0,0.00023987,7]
[340363153,1729090251076,-151.0,0.00023987,7]
[340363154,1729090251085,-151.0,0.00023987,7]
[340363155,1729090251095,-151.0,0.00023987,7]
[340363156,1729090251104,-151.0,0.00023987,7]
[340363157,1729090251113,-151.0,0.00023987,7]
[340363158,1729090251122,-151.0,0.00023987,7]
[340363159,1729090251131,-244.898128,0.00023987,7]
[340363160,1729090251140,-244.898128,0.00023987,7]
[340363161,1729090251149,-2685.327383,0.00023987,7]
[340363162,1729090251159,-2685.327383,0.00023987,7]
[340363163,1729090251168,-384.094243,0.00023987,7]
[340363164,1729090251177,-384.094243,0.00023987,7]
[340363165,1729090251187,-1800.6591,0.00023987,7]
[340363166,1729090251197,-1800.6591,0.00023987,7]
[340363167,1729090251207,-151.0,0.00023987,7]
[340363168,1729090251216,-275.086039,0.00023987,7]
[340363169,1729090251225,-275.086039,0.00023987,7]
[340363170,1729090251234,-232.57071,0.00023987,7]
[340363171,1729090251243,-232.57071,0.00023987,7]
[340363172,1729090251253,-178.43074,0.00023987,7]
[340363173,1729090251263,-178.43074,0.00023987,7]
[340363174,1729090251272,-296.211603,0.00023987,7]
[340363175,1729090251281,-296.211603,0.00023987,7]
[340363176,1729090251291,-785.418579,0.00023987,7]
[340363177,1729090251300,-785.418579,0.00023987,7]
[340363178,1729090251310,-534.876548,0.00023987,7]
[340363179,1729090251320,-534.876548,0.00023987,7]
[340363180,1729090251329,-231.089721,0.00023987,7]
[340363181,1729090251338,-218.37,0.00023987,7]
[340363182,1729090251348,-231.089721,0.00023987,7]
[340363183,1729090251357,-218.37,0.00023987,7]
[340363184,1729090251366,-3307.8920065,0.00023999,2]
[340363185,1729090251375,-150.01,0.00023999,2]
[340363186,1729090251385,-151.0,0.00023999,7]
[340363187,1729090251394,-535.400408,0.00023999,7]
[340363188,1729090251403,-535.400408,0.00023999,7]
[340363189,1729090251413,-151.0,0.00023999,7]
[340363190,1729090251422,-158.331456,0.00023999,7]
[340363191,1729090251431,-311.333139,0.00023999,7]
[340363192,1729090251441,-311.333139,0.00023999,7]
[340363193,1729090251450,-900.0,0.00024,2]
[340363194,1729090251459,-2500.0,0.00024,4]
[340363195,1729090251468,-184.44537865,0.0002402,2]
[340363196,1729090251476,-230.383631,0.00024064,7]
[340363197,1729090251486,-230.383631,0.00024064,7]
[340363198,1729090251495,-230.383631,0.00024064,7]
[340363199,1729090251504,-230.383631,0.00024064,7]
[340363200,1729090251512,-151.0,0.00024064,7]
[340363201,1729090251522,-151.0,0.00024064,7]
[340363202,1729090251531,-233.713239,0.00024064,7]
[340363203,1729090251540,-233.713239,0.00024064,7]
[340363204,1729090251549,-151.0,0.00024064,7]
[340363205,1729090251558,-308.956919,0.00024064,7]
[340363206,1729090251567,-308.956919,0.00024064,7]
[340363207,1729090251576,-2952.163839,0.00024064,7]
[340363208,1729090251585,-2952.163839,0.00024064,7]
[340363209,1729090251594,-151.0,0.00024064,7]
[340363210,1729090251603,-151.0,0.00024064,7]
[340363211,1729090251612,-290.803096,0.00024064,7]
[340363212,1729090251621,-151.0,0.00024064,7]
[340363213,1729090251630,-178.711532,0.00024064,7]
[340363214,1729090251638,-294.683428,0.00024064,7]
[340363215,1729090251647,-178.711532,0.00024064,7]
[340363216,1729090251656,-151.0,0.00024064,7]
[340363217,1729090251665,-151.0,0.00024064,7]
[340363218,1729090251674,-151.0,0.00024064,7]
[340363219,1729090251683,-275.754712,0.00024064,7]
[340363220,1729090251692,-275.754712,0.00024064,7]
[340363221,1729090251701,-213.853577,0.00024064,5]
[340363222,1729090251710,-213.853577,0.00024064,5]
[340363223,1729090251719,-670.218601,0.00024064,7]
[340363224,1729090251728,-740.173984,0.00024064,7]
[340363225,1729090251737,-670.218601,0.00024064,7]
[340363226,1729090251746,-740.173984,0.00024064,7]
[340363227,1729090251755,-201.424035,0.00024064,7]
[340363228,1729090251764,-201.424035,0.00024064,7]
[340363229,1729090251774,-365.696558,0.00024064,7]
[340363230,1729090251788,-365.696558,0.00024064,7]
[340363231,1729090251797,-151.0,0.00024064,7]
[340363232,1729090251806,-151.0,0.00024064,7]
[340363233,1729090251815,-151.0,0.00024064,7]
[340363234,1729090251825,-151.0,0.00024064,7]
[340363235,1729090251835,-376.052264,0.00024064,7]
[340363236,1729090251844,-376.052264,0.00024064,7]
[340363237,1729090251856,-151.0,0.00024064,7]
[340363238,1729090251865,-262.93427,0.00024064,7]
[340363239,1729090251875,-151.0,0.00024064,7]
[340363240,1729090251884,-481.670818,0.00024064,7]
[340363241,1729090251893,-262.93427,0.00024064,7]
[340363242,1729090251903,-481.670818,0.00024064,7]
[340363243,1729090251912,-474.173345,0.00024064,7]
[340363244,1729090251921,-474.173345,0.00024064,7]
[340363245,1729090251930,-1160.869238,0.00024064,7]
[340363246,1729090251939,-1160.869238,0.00024064,7]
[340363247,1729090251950,-151.0,0.00024064,7]
[340363248,1729090251959,-151.0,0.00024064,7]
[340363249,1729090251968,-1000.0,0.0002407,2]
[340363250,1729090251978,-1000.0,0.0002407,2]
[340363251,1729090251987,-500.0,0.0002407,2]
[340363252,1729090251997,-151.0,0.0002407,7]
[340363253,1729090252006,-220.023958,0.0002407,7]
[340363254,1729090252015,-500.0,0.0002407,2]
[340363255,1729090252024,-288.697879,0.0002407,7]
[340363256,1729090252034,-288.697879,0.0002407,7]
[340363257,1729090252043,-151.0,0.0002407,7]
[340363258,1729090252052,-308.76200152,0.00024071,2]
[340363259,1729090252061,-151.0,0.00024075,7]
[340363260,1729090252070,-273.625234,0.00024075,7]
[340363261,1729090252079,-273.625234,0.00024075,7]
[340363262,1729090252088,-1099.523206,0.00024075,7]
[340363263,1729090252097,-211.722561,0.00024075,7]
[340363264,1729090252107,-632.619884,0.00024075,7]
[340363265,1729090252116,-1099.523206,0.00024075,7]
[340363266,1729090252125,-211.722561,0.00024075,7]
[340363267,1729090252134,-632.619884,0.00024075,7]
[340363268,1729090252143,-151.0,0.00024075,7]
[340363269,1729090252152,-151.0,0.00024075,7]
[340363270,1729090252161,-162.03438,0.00024075,7]
[340363271,1729090252171,-151.0,0.00024075,7]
[340363272,1729090252179,-151.0,0.00024075,7]
[340363273,1729090252189,-6911.125232,0.00024075,7]
[340363274,1729090252198,-205.247859,0.00024075,7]
[340363275,1729090252207,-151.0,0.00024075,7]
[340363276,1729090252216,-205.247859,0.00024075,7]
[340363277,1729090252225,-6911.125232,0.00024075,7]
[340363278,1729090252234,-151.0,0.00024075,7]
[340363279,1729090252243,-151.0,0.00024075,7]
[340363280,1729090252253,-367.046569,0.00024075,7]
[340363281,1729090252262,-367.046569,0.00024075,7]
[340363282,1729090252271,-151.0,0.00024075,7]
[340363283,1729090252284,-151.0,0.00024075,7]
[340363284,1729090252297,-231.675069,0.00024075,7]
[340363285,1729090252307,-231.675069,0.00024075,7]
[340363286,1729090252316,-280.581335,0.00024075,7]
[340363287,1729090252325,-280.581335,0.00024075,7]
[340363288,1729090252335,-155.128563,0.0002408,7]
[340363289,1729090252345,-151.0,0.0002408,7]
[340363290,1729090252354,-151.0,0.0002408,7]
[340363291,1729090252363,-151.0,0.0002408,7]
[340363292,1729090252373,-151.0,0.0002408,7]
[340363293,1729090252382,-260.815285,0.0002408,7]
[340363294,1729090252391,-260.815285,0.0002408,7]
[340363295,1729090252400,-268.941669,0.0002408,7]
[340363296,1729090252410,-268.941669,0.0002408,7]
[340363297,1729090252419,-217.359221,0.0002408,7]
[340363298,1729090252428,-217.359221,0.0002408,7]
[340363299,1729090252437,-175.197109,0.0002408,7]
[340363300,1729090252447,-530.67712,0.0002408,7]
[340363301,1729090252456,-530.67712,0.0002408,7]
[340363302,1729090252466,-151.0,0.0002408,7]
[340363303,1729090252475,-151.0,0.0002408,7]
[340363304,1729090252485,-781.795626,0.0002408,7]
[340363305,1729090252494,-781.795626,0.0002408,7]
[340363306,1729090252504,-582.948746,0.0002408,7]
[340363307,1729090252515,-582.948746,0.0002408,7]
[340363308,1729090252529,-237.958686,0.0002408,7]
[340363309,1729090252538,-237.958686,0.0002408,7]
[340363310,1729090252548,-821.174344,0.0002408,7]
[340363311,1729090252557,-821.174344,0.0002408,7]
[340363312,1729090252567,-1553.791712,0.0002408,7]
[340363313,1729090252576,-151.0,0.0002408,7]
[340363314,1729090252586,-151.0,0.0002408,7]
[340363315,1729090252596,-151.0,0.0002408,7]
[340363316,1729090252605,-151.0,0.0002408,7]
[340363317,1729090252615,-155.194728,0.0002408,7]
[340363318,1729090252624,-151.0,0.0002408,7]
[340363319,1729090252634,-151.0,0.0002408,7]
[340363320,1729090252644,-244.898128,0.0002408,7]
[340363321,1729090252653,-244.898128,0.0002408,7]
[340363322,1729090252663,-151.0,0.0002408,7]
[340363323,1729090252673,-151.0,0.0002408,7]
[340363324,1729090252682,-151.0,0.0002408,7]
[340363325,1729090252691,-376.052264,0.0002408,7]
[340363326,1729090252701,-376.052264,0.0002408,7]
[340363327,1729090252711,-151.0,0.0002408,7]
[340363328,1729090252720,-262.93427,0.0002408,7]
[340363329,1729090252730,-151.0,0.0002408,7]
[340363330,1729090252741,-481.670818,0.0002408,7]
[340363331,1729090252750,-262.93427,0.0002408,7]
[340363332,1729090252760,-481.670818,0.0002408,7]
[340363333,1729090252769,-1160.869238,0.0002408,7]
[340363334,1729090252787,-1160.869238,0.0002408,7]
[340363335,1729090252797,-151.0,0.0002408,7]
[340363336,1729090252806,-213.979658,0.0002408,7]
[340363337,1729090252816,-151.0,0.0002408,7]
[340363338,1729090252827,-535.400408,0.0002408,7]
[340363339,1729090252837,-535.400408,0.0002408,7]
[340363340,1729090252846,-151.0,0.0002408,7]
[340363341,1729090252857,-2685.327383,0.0002408,7]
[340363342,1729090252867,-2685.327383,0.0002408,7]
[340363343,1729090252877,-20808.9529345,0.0002408,2]
[340363344,1729090252887,-384.094243,0.0002408,7]
[340363345,1729090252897,-384.094243,0.0002408,7]
[340363346,1729090252906,-189.786173,0.0002408,7]
[340363347,1729090252916,-189.786173,0.0002408,7]
[340363348,1729090252926,-217.84811007,0.0002408,2]
[340363349,1729090252936,-1800.6591,0.0002408,7]
[340363350,1729090252946,-1800.6591,0.0002408,7]
[340363351,1729090252956,-3931.467695,0.0002408,7]
[340363352,1729090252966,-311.333139,0.0002408,7]
[340363353,1729090252976,-151.0,0.0002408,7]
[340363354,1729090252985,-3931.467695,0.0002408,7]
[340363355,1729090252995,-275.086039,0.0002408,7]
[340363356,1729090253006,-311.333139,0.0002408,7]
[340363357,1729090253015,-275.086039,0.0002408,7]
[340363358,1729090253026,-232.57071,0.0002408,7]
[340363359,1729090253037,-232.57071,0.0002408,7]
[340363360,1729090253047,-279.84086,0.0002408,7]
[340363361,1729090253057,-279.84086,0.0002408,7]
[340363362,1729090253067,-178.43074,0.0002408,7]
[340363363,1729090253077,-178.43074,0.0002408,7]
[340363364,1729090253087,-64211.2165474,0.0002408,2]
[340363365,1729090253098,-296.211603,0.0002408,7]
[340363366,1729090253108,-296.211603,0.0002408,7]
[340363367,1729090253118,-785.418579,0.0002408,7]
[340363368,1729090253128,-785.418579,0.0002408,7]
[340363369,1729090253139,-534.876548,0.0002408,7]
[340363370,1729090253149,-534.876548,0.0002408,7]
[340363371,1729090253159,-231.089721,0.0002408,7]
[340363372,1729090253170,-218.37,0.0002408,7]
[340363373,1729090253179,-231.089721,0.0002408,7]
[340363374,1729090253189,-218.37,0.0002408,7]
[340363375,1729090253201,-265.476483,0.00024097,7]
[340363376,1729090253211,-265.476483,0.00024097,7]
[340363377,1729090253220,-151.0,0.00024097,7]
[340363378,1729090253230,-151.0,0.00024097,7]
[340363379,1729090253240,-205.084029,0.00024097,7]
[340363380,1729090253250,-205.084029,0.00024097,7]
[340363381,1729090253260,-151.0,0.00024097,7]
[340363382,1729090253270,-289.256455,0.00024097,7]
[340363383,1729090253283,-210.02,0.00024104,2]
[340363384,1729090253293,-184.44537865,0.00024196,2]
[340363385,1729090253303,-859.24,0.00024206,2]
[340363386,1729090253313,-429.69,0.00024206,2]
[340363387,1729090253323,-429.69,0.00024206,2]
[340363388,1729090253333,-429.69,0.00024206,2]
[340363389,1729090253344,-429.69,0.00024206,2]
[340363390,1729090253354,-429.69,0.00024206,2]
[340363391,1729090253364,-429.69,0.00024206,2]
[340363392,1729090253374,-429.69,0.00024206,2]
[340363393,1729090253384,-429.69,0.00024206,2]
[340363394,1729090253395,-429.69,0.00024206,2]
[340363395,1729090253404,-359.29,0.00024206,2]
[340363396,1729090253414,-429.69,0.00024206,2]
[340363397,1729090253424,-359.29,0.00024206,2]
[340363398,1729090253434,-429.69,0.00024206,2]
[340363399,1729090253444,-429.69,0.00024206,2]
[340363400,1729090253454,-359.29,0.00024206,2]
[340363401,1729090253464,-359.29,0.00024206,2]
[340363402,1729090253474,-429.69,0.00024206,2]
[340363403,1729090253483,-359.29,0.00024206,2]
[340363404,1729090253493,-429.69,0.00024206,2]
[340363405,1729090253503,-359.29,0.00024206,2]
[340363406,1729090253513,-359.29,0.00024206,2]
[340363407,1729090253523,-359.29,0.00024206,2]
[340363408,1729090253538,-429.69,0.00024206,2]
[340363409,1729090253547,-359.29,0.00024206,2]
[340363410,1729090253558,-359.29,0.00024206,2]
[340363411,1729090253567,-859.38,0.00024206,2]
[340363412,1729090253577,-359.29,0.00024206,2]
[340363413,1729090253587,-159.74,0.00024206,2]
[340363414,1729090253598,-359.29,0.00024206,2]
[340363415,1729090253608,-359.29,0.00024206,2]
[340363416,1729090253618,-429.69,0.00024206,2]
[340363417,1729090253628,-359.29,0.00024206,2]
[340363418,1729090253638,-429.69,0.00024206,2]
[340363419,1729090253648,-429.69,0.00024206,2]
[340363420,1729090253658,-718.49,0.00024206,2]
[340363421,1729090253668,-429.69,0.00024206,2]
[340363422,1729090253678,-429.69,0.00024206,2]
[340363423,1729090253688,-359.29,0.00024206,2]
[340363424,1729090253698,-429.69,0.00024206,2]
[340363425,1729090253708,-359.29,0.00024206,2]
[340363426,1729090253718,-429.69,0.00024206,2]
[340363427,1729090253728,-359.29,0.00024206,2]
[340363428,1729090253737,-429.69,0.00024206,2]
[340363429,1729090253748,-359.29,0.00024206,2]
[340363430,1729090253758,-359.29,0.00024206,2]
[340363431,1729090253768,-858.13,0.00024206,2]
[340363432,1729090253784,-429.69,0.00024206,2]
[340363433,1729090253795,-322.13,0.00024206,2]
[340363434,1729090253805,-359.29,0.00024206,2]
[340363435,1729090253815,-429.69,0.00024206,2]
[340363436,1729090253827,-151.0,0.00024206,7]
[340363437,1729090253836,-178.711532,0.00024206,7]
[340363438,1729090253846,-178.711532,0.00024206,7]
[340363439,1729090253856,-151.0,0.00024206,7]
[340363440,1729090253866,-151.0,0.00024206,7]
[340363441,1729090253876,-151.0,0.00024206,7]
[340363442,1729090253885,-275.754712,0.00024206,7]
[340363443,1729090253895,-275.754712,0.00024206,7]
[340363444,1729090253905,-213.853577,0.00024206,5]
[340363445,1729090253915,-213.853577,0.00024206,5]
[340363446,1729090253925,-670.218601,0.00024206,7]
[340363447,1729090253936,-740.173984,0.00024206,7]
[340363448,1729090253946,-670.218601,0.00024206,7]
[340363449,1729090253957,-740.173984,0.00024206,7]
[340363450,1729090253967,-201.424035,0.00024206,7]
[340363451,1729090253976,-272.268399,0.00024206,7]
[340363452,1729090253986,-201.424035,0.00024206,7]
[340363453,1729090253996,-365.696558,0.00024206,7]
[340363454,1729090254006,-365.696558,0.00024206,7]
[340363455,1729090254015,-151.0,0.00024206,7]
[340363456,1729090254029,-474.173345,0.00024206,7]
[340363457,1729090254039,-474.173345,0.00024206,7]
[340363458,1729090254048,-3585.03,0.00024209,2]
[340363459,1729090254058,-1000.0,0.00024209,2]
[340363460,1729090254068,-308.76200152,0.00024209,2]
[340363461,1729090254078,-399.82928539,0.0002421,2]
[340363462,1729090254089,-156.79,0.00024225,2]
[340363463,1729090254099,-151.0,0.00024231,7]
[340363464,1729090254109,-308.956919,0.00024231,7]
[340363465,1729090254119,-308.956919,0.00024231,7]
[340363466,1729090254130,-2952.163839,0.00024231,7]
[340363467,1729090254140,-2952.163839,0.00024231,7]
[340363468,1729090254150,-1225.66826097,0.0002425,2]
[340363469,1729090254161,-151.0,0.00024336,2]
[340363470,1729090254171,-157.57836994,0.0002434,2]
[340363471,1729090254182,-308.76200152,0.00024348,2]
[340363472,1729090254192,-184.44537865,0.00024372,2]
[340363473,1729090254203,-151.0,0.00024399,7]
[340363474,1729090254213,-288.697879,0.00024399,7]
[340363475,1729090254224,-288.697879,0.00024399,7]
[340363476,1729090254234,-151.0,0.00024399,7]
[340363477,1729090254244,-335.81758083,0.0002442,2]
[340363478,1729090254255,-230.383631,0.00024425,7]
[340363479,1729090254266,-230.383631,0.00024425,7]
[340363480,1729090254279,-151.0,0.00024425,7]
[340363481,1729090254288,-151.0,0.00024425,7]
[340363482,1729090254299,-233.713239,0.00024425,7]
[340363483,1729090254309,-233.713239,0.00024425,7]
[340363484,1729090254319,-151.0,0.00024425,7]
[340363485,1729090254330,-151.0,0.00024425,7]
[340363486,1729090254340,-151.0,0.00024425,7]
[340363487,1729090254350,-151.0,0.00024425,7]
[340363488,1729090254360,-260.815285,0.00024425,7]
[340363489,1729090254370,-260.815285,0.00024425,7]
[340363490,1729090254381,-268.941669,0.00024425,7]
[340363491,1729090254391,-268.941669,0.00024425,7]
[340363492,1729090254402,-265.476483,0.00024425,7]
[340363493,1729090254412,-265.476483,0.00024425,7]
[340363494,1729090254422,-151.0,0.00024425,7]
[340363495,1729090254433,-217.359221,0.00024425,7]
[340363496,1729090254443,-217.359221,0.00024425,7]
[340363497,1729090254453,-151.0,0.00024425,7]
[340363498,1729090254464,-205.084029,0.00024425,7]
[340363499,1729090254474,-205.084029,0.00024425,7]
[340363500,1729090254483,-151.0,0.00024425,7]
[340363501,1729090254494,-151.0,0.00024425,7]
[340363502,1729090254503,-151.0,0.00024425,7]
[340363503,1729090254513,-530.67712,0.00024425,7]
[340363504,1729090254523,-530.67712,0.00024425,7]
[340363505,1729090254537,-151.0,0.00024425,7]
[340363506,1729090254547,-273.625234,0.00024425,7]
[340363507,1729090254557,-273.625234,0.00024425,7]
[340363508,1729090254567,-159.93766059,0.00024435,2]
[340363509,1729090254577,-308.76200152,0.00024486,2]
[340363510,1729090254587,-151.0,0.0002449,7]
[340363511,1729090254596,-151.0,0.0002449,7]
[340363512,1729090254606,-151.0,0.0002449,7]
[340363513,1729090254616,-6911.125232,0.0002449,7]
[340363514,1729090254626,-151.0,0.0002449,7]
[340363515,1729090254635,-6911.125232,0.0002449,7]
[340363516,1729090254645,-151.0,0.0002449,7]
[340363517,1729090254655,-151.0,0.00024498,7]
[340363518,1729090254665,-1783.35885642,0.00024499,10]
[340363519,1729090254675,-1783.35885642,0.00024499,10]
[340363520,1729090254685,-230.383631,0.00024499,7]
[340363521,1729090254694,-230.383631,0.00024499,7]
[340363522,1729090254704,-230.383631,0.00024499,7]
[340363523,1729090254713,-230.383631,0.00024499,7]
[340363524,1729090254723,-151.0,0.00024499,7]
[340363525,1729090254732,-154.866142,0.00024499,7]
[340363526,1729090254742,-151.0,0.00024499,7]
[340363527,1729090254751,-151.0,0.00024499,7]
[340363528,1729090254761,-233.713239,0.00024499,7]
[340363529,1729090254770,-233.713239,0.00024499,7]
[340363530,1729090254785,-233.713239,0.00024499,7]
[340363531,1729090254795,-233.713239,0.00024499,7]
[340363532,1729090254804,-151.0,0.00024499,7]
[340363533,1729090254814,-151.0,0.00024499,7]
[340363534,1729090254825,-308.956919,0.00024499,7]
[340363535,1729090254836,-308.956919,0.00024499,7]
[340363536,1729090254846,-308.956919,0.00024499,7]
[340363537,1729090254857,-308.956919,0.00024499,7]
[340363538,1729090254867,-2952.163839,0.00024499,7]
[340363539,1729090254877,-2952.163839,0.00024499,7]
[340363540,1729090254887,-2952.163839,0.00024499,7]
[340363541,1729090254896,-2952.163839,0.00024499,7]
[340363542,1729090254906,-151.0,0.00024499,7]
[340363543,1729090254915,-212.000333,0.00024499,7]
[340363544,1729090254925,-212.000333,0.00024499,7]
[340363545,1729090254935,-151.0,0.00024499,7]
[340363546,1729090255115,-151.0,0.00024499,7]
[340363547,1729090255126,-151.0,0.00024499,7]